[Event "Titled Tuesday Blitz January 17 Early 2023"]
[White "Kravtsiv, Martyn"]
[Black "Divya Deshmukh"]
[WhiteFideId "14113147"]
[BlackFideId "35006916"]
[WhiteElo "2598"]
[BlackElo "2372"]
[Result "1-0"]
[Round "02"]
[TimeControl "180+2"]
[Date "2023.01.17"]
[WhiteClock "0:02:31"]
[BlackClock "0:02:25"]

1. e4 {[%clk 0:03:00]}  c5 {[%clk 0:02:59]} 2. Nf3 {[%clk 0:03:01]}  d6 {[%clk 0:02:56]} 3. Bb5+ {[%clk 0:03:00]}  Nd7 {[%clk 0:02:56]} 4. d4 {[%clk 0:02:58]}  cxd4 {[%clk 0:02:56]} 5. Qxd4 {[%clk 0:02:59]}  a6 {[%clk 0:02:56]} 6. Bxd7+ {[%clk 0:02:58]}  Bxd7 {[%clk 0:02:57]} 7. O-O {[%clk 0:02:58]}  e5 {[%clk 0:02:57]} 8. Qd3 {[%clk 0:02:57]}  h6 {[%clk 0:02:55]} 9. a4 {[%clk 0:02:51]}  Rc8 {[%clk 0:02:54]} 10. c4 {[%clk 0:02:49]}  Qc7 {[%clk 0:02:46]} 11. b3 {[%clk 0:02:42]}  b5 {[%clk 0:02:46]} 12. axb5 {[%clk 0:02:41]}  axb5 {[%clk 0:02:46]} 13. Na3 {[%clk 0:02:41]}  bxc4 {[%clk 0:02:43]} 14. Nxc4 {[%clk 0:02:42]}  Bb5 {[%clk 0:02:43]} 15. Nxd6+ {[%clk 0:02:36]}  Bxd6 {[%clk 0:02:44]} 16. Qxb5+ {[%clk 0:02:36]}  Qd7 {[%clk 0:02:28]} 17. Qxd7+ {[%clk 0:02:33]}  Kxd7 {[%clk 0:02:29]} 18. Rd1 {[%clk 0:02:33]}  Ke6 {[%clk 0:02:25]} 19. Ra6 {[%clk 0:02:31]} 1-0


[Site "https://www.chess.com"]

[Event "Titled Tuesday Blitz January 17 Early 2023"]
[White "Guzman, Christopher"]
[Black "Bharath Subramaniyam H"]
[WhiteFideId "6405096"]
[BlackFideId "46634827"]
[WhiteElo "2271"]
[BlackElo "2517"]
[Result "0-1"]
[Round "02"]
[TimeControl "180+2"]
[Date "2023.01.17"]
[WhiteClock "0:01:12"]
[BlackClock "0:01:47"]

1. e4 {[%clk 0:03:00]}  c5 {[%clk 0:02:59]} 2. Nf3 {[%clk 0:02:59]}  d6 {[%clk 0:03:00]} 3. d4 {[%clk 0:02:59]}  cxd4 {[%clk 0:03:00]} 4. Nxd4 {[%clk 0:03:00]}  Nf6 {[%clk 0:03:01]} 5. Nc3 {[%clk 0:03:01]}  a6 {[%clk 0:03:01]} 6. h4 {[%clk 0:03:01]}  e5 {[%clk 0:03:00]} 7. Nb3 {[%clk 0:03:01]}  Be7 {[%clk 0:03:00]} 8. Bg5 {[%clk 0:03:00]}  Be6 {[%clk 0:02:58]} 9. g3 {[%clk 0:03:00]}  Nbd7 {[%clk 0:02:58]} 10. Qd2 {[%clk 0:03:00]}  h6 {[%clk 0:02:57]} 11. Bxf6 {[%clk 0:03:00]}  Nxf6 {[%clk 0:02:58]} 12. f4 {[%clk 0:02:59]}  b5 {[%clk 0:02:57]} 13. f5 {[%clk 0:02:57]}  Bd7 {[%clk 0:02:57]} 14. a3 {[%clk 0:02:56]}  Rc8 {[%clk 0:02:53]} 15. Bg2 {[%clk 0:02:55]}  O-O {[%clk 0:02:46]} 16. O-O-O {[%clk 0:02:54]}  Rc4 {[%clk 0:02:46]} 17. Qe3 {[%clk 0:02:26]}  a5 {[%clk 0:02:42]} 18. Nd2 {[%clk 0:02:25]}  Rc5 {[%clk 0:02:37]} 19. Nb3 {[%clk 0:02:22]}  Rc8 {[%clk 0:02:34]} 20. Nd5 {[%clk 0:02:20]}  Nxd5 {[%clk 0:02:32]} 21. Rxd5 {[%clk 0:02:21]}  Qc7 {[%clk 0:02:29]} 22. Qd2 {[%clk 0:01:52]}  a4 {[%clk 0:02:28]} 23. Na1 {[%clk 0:01:52]}  Qc4 {[%clk 0:02:26]} 24. Kb1 {[%clk 0:01:41]}  Rb8 {[%clk 0:02:13]} 25. Re1 {[%clk 0:01:33]}  b4 {[%clk 0:02:12]} 26. Rd3 {[%clk 0:01:27]}  bxa3 {[%clk 0:02:10]} 27. Rxa3 {[%clk 0:01:19]}  d5 {[%clk 0:02:10]} 28. Ra2 {[%clk 0:01:18]}  Bb4 {[%clk 0:02:08]} 29. Qe2 {[%clk 0:01:14]}  Bxe1 {[%clk 0:02:07]} 30. Qxe1 {[%clk 0:01:15]}  dxe4 {[%clk 0:02:04]} 31. Qxe4 {[%clk 0:01:12]}  Qxe4 {[%clk 0:02:02]} 32. Bxe4 {[%clk 0:01:13]}  Rb4 {[%clk 0:02:02]} 33. Bd3 {[%clk 0:01:12]}  Rg4 {[%clk 0:01:48]} 34. b3 {[%clk 0:01:12]}  axb3 {[%clk 0:01:47]} 35. cxb3 {[%clk 0:01:12]}  Rxg3 {[%clk 0:01:47]} 36. Bc2 {[%clk 0:01:12]}  Rg1+ {[%clk 0:01:46]} 37. Kb2 {[%clk 0:01:12]}  Rg2 {[%clk 0:01:46]} 38. Ra7 {[%clk 0:01:11]}  Bxf5 {[%clk 0:01:46]} 39. Rc7 {[%clk 0:01:12]}  Bxc2 {[%clk 0:01:46]} 40. Nxc2 {[%clk 0:01:12]}  f5 {[%clk 0:01:47]} 41. b4 {[%clk 0:01:12]}  f4 {[%clk 0:01:47]} 0-1


[Site "https://www.chess.com"]

[Event "Titled Tuesday Blitz January 17 Early 2023"]
[White "Kosakowski, Jakub"]
[Black "Ince, Taylan Ruzgar"]
[WhiteFideId "1185080"]
[BlackFideId "44513089"]
[WhiteElo "2485"]
[BlackElo "2264"]
[Result "0-1"]
[Round "02"]
[TimeControl "180+2"]
[Date "2023.01.17"]
[WhiteClock "0:00:25"]
[BlackClock "0:00:27"]

1. e4 {[%clk 0:03:00]}  e6 {[%clk 0:02:59]} 2. d4 {[%clk 0:03:00]}  d5 {[%clk 0:03:00]} 3. Nc3 {[%clk 0:03:00]}  Bb4 {[%clk 0:02:59]} 4. e5 {[%clk 0:03:00]}  c5 {[%clk 0:02:58]} 5. a3 {[%clk 0:03:00]}  Bxc3+ {[%clk 0:02:58]} 6. bxc3 {[%clk 0:03:01]}  Ne7 {[%clk 0:02:58]} 7. Qg4 {[%clk 0:02:57]}  O-O {[%clk 0:02:58]} 8. Bd3 {[%clk 0:02:57]}  c4 {[%clk 0:02:58]} 9. Bh6 {[%clk 0:02:41]}  Ng6 {[%clk 0:02:56]} 10. Bxg6 {[%clk 0:02:41]}  fxg6 {[%clk 0:02:56]} 11. Be3 {[%clk 0:02:41]}  Nc6 {[%clk 0:02:55]} 12. h4 {[%clk 0:02:39]}  Qe8 {[%clk 0:02:54]} 13. h5 {[%clk 0:02:38]}  gxh5 {[%clk 0:02:49]} 14. Rxh5 {[%clk 0:02:36]}  Ne7 {[%clk 0:02:49]} 15. Nh3 {[%clk 0:02:27]}  Nf5 {[%clk 0:02:43]} 16. Nf4 {[%clk 0:02:22]}  h6 {[%clk 0:02:16]} 17. Kd2 {[%clk 0:02:20]}  Bd7 {[%clk 0:02:12]} 18. Rah1 {[%clk 0:02:19]}  Qf7 {[%clk 0:01:58]} 19. R5h3 {[%clk 0:02:00]}  Be8 {[%clk 0:01:53]} 20. Kc1 {[%clk 0:01:48]}  Rc8 {[%clk 0:01:53]} 21. Nh5 {[%clk 0:01:46]}  Qg6 {[%clk 0:01:49]} 22. Qe2 {[%clk 0:01:42]}  Rc6 {[%clk 0:01:45]} 23. Bd2 {[%clk 0:01:30]}  Ra6 {[%clk 0:01:29]} 24. g4 {[%clk 0:01:29]}  Ne7 {[%clk 0:00:55]} 25. g5 {[%clk 0:01:28]}  Rxa3 {[%clk 0:00:50]} 26. Nf6+ {[%clk 0:01:13]}  Rxf6 {[%clk 0:00:42]} 27. gxf6 {[%clk 0:01:12]}  Ra2 {[%clk 0:00:42]} 28. Bxh6 {[%clk 0:01:06]}  Ba4 {[%clk 0:00:38]} 29. Rg3 {[%clk 0:00:32]}  Rxc2+ {[%clk 0:00:35]} 30. Kb1 {[%clk 0:00:32]}  Rxe2+ {[%clk 0:00:30]} 31. Rxg6 {[%clk 0:00:32]}  Nxg6 {[%clk 0:00:30]} 32. fxg7 {[%clk 0:00:25]}  Rxf2 {[%clk 0:00:28]} 33. Rg1 {[%clk 0:00:25]}  Bc2+ {[%clk 0:00:28]} 34. Kc1 {[%clk 0:00:25]}  Bf5 {[%clk 0:00:28]} 35. Bg5 {[%clk 0:00:24]}  Kxg7 {[%clk 0:00:27]} 36. Bf6+ {[%clk 0:00:24]}  Kf7 {[%clk 0:00:28]} 37. Rh1 {[%clk 0:00:25]}  Nf4 {[%clk 0:00:27]} 38. Rh8 {[%clk 0:00:25]}  Nd3+ {[%clk 0:00:26]} 39. Kb1 {[%clk 0:00:25]}  Nxe5+ {[%clk 0:00:27]} 0-1


[Site "https://www.chess.com"]

[Event "Titled Tuesday Blitz January 17 Early 2023"]
[White "Andreev, Eduard"]
[Black "Demidov, Mikhail"]
[WhiteFideId "14103400"]
[BlackFideId "4197143"]
[WhiteElo "2413"]
[BlackElo "2583"]
[Result "1-0"]
[Round "02"]
[TimeControl "180+2"]
[Date "2023.01.17"]
[WhiteClock "0:00:11"]
[BlackClock "0:00:03"]

1. e4 {[%clk 0:03:00]}  Nf6 {[%clk 0:02:58]} 2. e5 {[%clk 0:03:00]}  Nd5 {[%clk 0:02:58]} 3. d4 {[%clk 0:03:01]}  d6 {[%clk 0:02:58]} 4. Nf3 {[%clk 0:03:01]}  Nb6 {[%clk 0:02:59]} 5. Nc3 {[%clk 0:02:56]}  g6 {[%clk 0:02:59]} 6. Bf4 {[%clk 0:02:54]}  Bg7 {[%clk 0:02:59]} 7. Qd2 {[%clk 0:02:52]}  O-O {[%clk 0:02:52]} 8. O-O-O {[%clk 0:02:49]}  Nc6 {[%clk 0:02:51]} 9. Kb1 {[%clk 0:02:37]}  Bg4 {[%clk 0:02:42]} 10. exd6 {[%clk 0:02:35]}  cxd6 {[%clk 0:02:41]} 11. Be3 {[%clk 0:02:31]}  Rc8 {[%clk 0:02:36]} 12. Be2 {[%clk 0:02:26]}  Na5 {[%clk 0:02:36]} 13. b3 {[%clk 0:02:24]}  Nc6 {[%clk 0:02:25]} 14. h3 {[%clk 0:02:12]}  Bd7 {[%clk 0:02:16]} 15. Rc1 {[%clk 0:02:02]}  Nb4 {[%clk 0:02:03]} 16. a3 {[%clk 0:01:42]}  N6d5 {[%clk 0:01:46]} 17. Nxd5 {[%clk 0:01:41]}  Nxd5 {[%clk 0:01:45]} 18. c4 {[%clk 0:01:42]}  Nxe3 {[%clk 0:01:44]} 19. fxe3 {[%clk 0:01:43]}  e5 {[%clk 0:01:41]} 20. Ka2 {[%clk 0:01:36]}  e4 {[%clk 0:01:26]} 21. Ne1 {[%clk 0:01:04]}  f5 {[%clk 0:01:22]} 22. Nc2 {[%clk 0:00:57]}  Qg5 {[%clk 0:01:16]} 23. Rhg1 {[%clk 0:00:53]}  Qg3 {[%clk 0:01:15]} 24. Rcf1 {[%clk 0:00:50]}  Rf7 {[%clk 0:01:05]} 25. d5 {[%clk 0:00:49]}  Rcf8 {[%clk 0:01:00]} 26. Nd4 {[%clk 0:00:38]}  f4 {[%clk 0:00:59]} 27. exf4 {[%clk 0:00:35]}  Rxf4 {[%clk 0:00:58]} 28. Ne6 {[%clk 0:00:27]}  Bc3 {[%clk 0:00:38]} 29. Rxf4 {[%clk 0:00:21]}  Bxe6 {[%clk 0:00:32]} 30. Rxf8+ {[%clk 0:00:20]}  Kxf8 {[%clk 0:00:33]} 31. Rf1+ {[%clk 0:00:19]}  Bf5 {[%clk 0:00:17]} 32. Qf4 {[%clk 0:00:16]}  Qxg2 {[%clk 0:00:15]} 33. Rf2 {[%clk 0:00:13]}  Qg1 {[%clk 0:00:13]} 34. Bf1 {[%clk 0:00:12]}  Be5 {[%clk 0:00:11]} 35. Qe3 {[%clk 0:00:11]}  Kg7 {[%clk 0:00:09]} 36. b4 {[%clk 0:00:10]}  a6 {[%clk 0:00:09]} 37. c5 {[%clk 0:00:11]}  dxc5 {[%clk 0:00:09]} 38. bxc5 {[%clk 0:00:12]}  Bg3 {[%clk 0:00:07]} 39. Re2 {[%clk 0:00:10]}  Qxf1 {[%clk 0:00:07]} 40. d6 {[%clk 0:00:09]}  Be6+ {[%clk 0:00:07]} 41. Kb2 {[%clk 0:00:09]}  Be5+ {[%clk 0:00:07]} 42. Kc2 {[%clk 0:00:10]}  Qa1 {[%clk 0:00:06]} 43. Kd2 {[%clk 0:00:09]}  Bf5 {[%clk 0:00:04]} 44. d7 {[%clk 0:00:08]}  Bxd7 {[%clk 0:00:03]} 45. Qb3 {[%clk 0:00:08]}  Qa2+ {[%clk 0:00:04]} 46. Qxa2 {[%clk 0:00:08]}  Bf5 {[%clk 0:00:04]} 47. Qc2 {[%clk 0:00:08]}  Bf4+ {[%clk 0:00:04]} 48. Ke1 {[%clk 0:00:08]}  Bg3+ {[%clk 0:00:04]} 49. Kd1 {[%clk 0:00:08]}  e3 {[%clk 0:00:04]} 50. Qb2+ {[%clk 0:00:08]}  Kh6 {[%clk 0:00:04]} 51. Qf6 {[%clk 0:00:07]}  Bf2 {[%clk 0:00:03]} 52. Rxf2 {[%clk 0:00:06]}  exf2 {[%clk 0:00:04]} 53. Ke2 {[%clk 0:00:06]}  Bxh3 {[%clk 0:00:04]} 54. Kxf2 {[%clk 0:00:07]}  Bd7 {[%clk 0:00:02]} 55. Qe7 {[%clk 0:00:07]}  Bc6 {[%clk 0:00:02]} 56. Qh4+ {[%clk 0:00:08]}  Kg7 {[%clk 0:00:03]} 57. Ke3 {[%clk 0:00:08]}  h6 {[%clk 0:00:02]} 58. Qd4+ {[%clk 0:00:09]}  Kf7 {[%clk 0:00:03]} 59. Kf4 {[%clk 0:00:10]}  g5+ {[%clk 0:00:03]} 60. Kg3 {[%clk 0:00:10]}  Kg6 {[%clk 0:00:03]} 61. Qe5 {[%clk 0:00:10]}  h5 {[%clk 0:00:03]} 62. Qe6+ {[%clk 0:00:10]}  Kg7 {[%clk 0:00:04]} 63. Qf5 {[%clk 0:00:10]}  Kh6 {[%clk 0:00:04]} 64. Qf6+ {[%clk 0:00:10]}  Kh7 {[%clk 0:00:04]} 65. Qxg5 {[%clk 0:00:10]}  Be8 {[%clk 0:00:04]} 66. Kh4 {[%clk 0:00:11]}  Bf7 {[%clk 0:00:03]} 67. Qe7 {[%clk 0:00:11]}  Kg8 {[%clk 0:00:03]} 68. Qxb7 {[%clk 0:00:11]} 1-0


[Site "https://www.chess.com"]

[Event "Titled Tuesday Blitz January 17 Early 2023"]
[White "Baskakov, Egor"]
[Black "Mohamed Anees M"]
[WhiteFideId "24197866"]
[BlackFideId "35065815"]
[WhiteElo "2215"]
[BlackElo "2315"]
[Result "1/2-1/2"]
[Round "02"]
[TimeControl "180+2"]
[Date "2023.01.17"]
[WhiteClock "0:00:10"]
[BlackClock "0:00:21"]

1. e4 {[%clk 0:03:00]}  d5 {[%clk 0:02:58]} 2. exd5 {[%clk 0:03:00]}  Nf6 {[%clk 0:02:58]} 3. Nf3 {[%clk 0:03:00]}  Nxd5 {[%clk 0:02:58]} 4. Be2 {[%clk 0:03:01]}  c5 {[%clk 0:02:58]} 5. d4 {[%clk 0:03:00]}  cxd4 {[%clk 0:02:57]} 6. Nxd4 {[%clk 0:03:01]}  e5 {[%clk 0:02:58]} 7. Nb3 {[%clk 0:03:00]}  Nc6 {[%clk 0:02:58]} 8. O-O {[%clk 0:03:00]}  Be7 {[%clk 0:02:57]} 9. c4 {[%clk 0:03:00]}  Nf6 {[%clk 0:02:54]} 10. Nc3 {[%clk 0:03:00]}  O-O {[%clk 0:02:54]} 11. Nd5 {[%clk 0:02:51]}  Nxd5 {[%clk 0:02:54]} 12. cxd5 {[%clk 0:02:52]}  Nb4 {[%clk 0:02:49]} 13. Bc4 {[%clk 0:02:42]}  Bf5 {[%clk 0:02:45]} 14. Bd2 {[%clk 0:02:35]}  Rc8 {[%clk 0:02:43]} 15. Qe2 {[%clk 0:02:27]}  Rxc4 {[%clk 0:02:19]} 16. Qxc4 {[%clk 0:02:24]}  Bd3 {[%clk 0:02:19]} 17. Qg4 {[%clk 0:02:15]}  Bxf1 {[%clk 0:02:17]} 18. Bxb4 {[%clk 0:02:15]}  Bd3 {[%clk 0:01:31]} 19. Bxe7 {[%clk 0:01:48]}  Qxe7 {[%clk 0:01:32]} 20. Rd1 {[%clk 0:01:48]}  e4 {[%clk 0:01:32]} 21. Nc1 {[%clk 0:01:42]}  Qe5 {[%clk 0:01:27]} 22. Qg3 {[%clk 0:01:07]}  Qxd5 {[%clk 0:01:19]} 23. Nxd3 {[%clk 0:01:06]}  exd3 {[%clk 0:01:20]} 24. Qxd3 {[%clk 0:01:03]}  Qxa2 {[%clk 0:01:20]} 25. Qc3 {[%clk 0:01:03]}  Qa4 {[%clk 0:01:14]} 26. Re1 {[%clk 0:00:58]}  Qd7 {[%clk 0:01:13]} 27. h3 {[%clk 0:00:56]}  h6 {[%clk 0:01:13]} 28. Qa3 {[%clk 0:00:55]}  a6 {[%clk 0:01:08]} 29. Qb4 {[%clk 0:00:50]}  b5 {[%clk 0:00:46]} 30. Ra1 {[%clk 0:00:44]}  Ra8 {[%clk 0:00:44]} 31. Qa5 {[%clk 0:00:39]}  Qc6 {[%clk 0:00:44]} 32. b4 {[%clk 0:00:34]}  Re8 {[%clk 0:00:43]} 33. Rd1 {[%clk 0:00:23]}  Re2 {[%clk 0:00:36]} 34. Qd8+ {[%clk 0:00:20]}  Kh7 {[%clk 0:00:35]} 35. Qd3+ {[%clk 0:00:21]}  Qe4 {[%clk 0:00:36]} 36. Qxe4+ {[%clk 0:00:16]}  Rxe4 {[%clk 0:00:36]} 37. Rd6 {[%clk 0:00:17]}  Rxb4 {[%clk 0:00:35]} 38. Rxa6 {[%clk 0:00:17]}  Rb2 {[%clk 0:00:36]} 39. Rb6 {[%clk 0:00:15]}  b4 {[%clk 0:00:37]} 40. g3 {[%clk 0:00:15]}  f6 {[%clk 0:00:37]} 41. Kg2 {[%clk 0:00:15]}  Kg6 {[%clk 0:00:38]} 42. g4 {[%clk 0:00:16]}  h5 {[%clk 0:00:36]} 43. Kg3 {[%clk 0:00:16]}  Rb3+ {[%clk 0:00:36]} 44. f3 {[%clk 0:00:16]}  h4+ {[%clk 0:00:31]} 45. Kxh4 {[%clk 0:00:10]}  Rxf3 {[%clk 0:00:30]} 46. Rxb4 {[%clk 0:00:10]}  Kh6 {[%clk 0:00:28]} 47. g5+ {[%clk 0:00:11]}  fxg5+ {[%clk 0:00:29]} 48. Kg4 {[%clk 0:00:12]}  Rf6 {[%clk 0:00:27]} 49. Rb5 {[%clk 0:00:12]}  Ra6 {[%clk 0:00:25]} 50. Rb8 {[%clk 0:00:08]}  Ra4+ {[%clk 0:00:25]} 51. Kg3 {[%clk 0:00:09]}  Kg6 {[%clk 0:00:24]} 52. Rb6+ {[%clk 0:00:09]}  Kh5 {[%clk 0:00:25]} 53. Rb8 {[%clk 0:00:09]}  Ra3+ {[%clk 0:00:25]} 54. Kg2 {[%clk 0:00:09]}  Ra2+ {[%clk 0:00:22]} 55. Kg3 {[%clk 0:00:09]}  Ra3+ {[%clk 0:00:21]} 56. Kg2 {[%clk 0:00:10]}  Kg6 {[%clk 0:00:19]} 57. Rb6+ {[%clk 0:00:09]}  Kf5 {[%clk 0:00:20]} 58. Rb5+ {[%clk 0:00:10]}  Kf4 {[%clk 0:00:20]} 59. Rb4+ {[%clk 0:00:10]}  Kf5 {[%clk 0:00:20]} 60. Rb5+ {[%clk 0:00:10]}  Kg6 {[%clk 0:00:20]} 61. Rb6+ {[%clk 0:00:10]}  Kh5 {[%clk 0:00:21]} 62. Rb8 {[%clk 0:00:10]} 1/2-1/2


[Site "https://www.chess.com"]

[Event "Titled Tuesday Blitz January 17 Early 2023"]
[White "Galchenko, Matvey"]
[Black "Ilkhomi, Jaloliddin"]
[WhiteFideId "24175480"]
[BlackFideId "14700948"]
[WhiteElo "2438"]
[BlackElo "1997"]
[Result "1-0"]
[Round "02"]
[TimeControl "180+2"]
[Date "2023.01.17"]
[WhiteClock "0:01:11"]
[BlackClock "0:01:08"]

1. e4 {[%clk 0:03:00]}  e6 {[%clk 0:02:59]} 2. d4 {[%clk 0:02:58]}  d5 {[%clk 0:02:58]} 3. exd5 {[%clk 0:02:54]}  exd5 {[%clk 0:02:58]} 4. Nf3 {[%clk 0:02:55]}  Bd6 {[%clk 0:02:56]} 5. c4 {[%clk 0:02:55]}  c6 {[%clk 0:02:55]} 6. Nc3 {[%clk 0:02:55]}  Ne7 {[%clk 0:02:55]} 7. Bd3 {[%clk 0:02:54]}  O-O {[%clk 0:02:55]} 8. O-O {[%clk 0:02:54]}  Bf5 {[%clk 0:02:55]} 9. Bxf5 {[%clk 0:02:41]}  Nxf5 {[%clk 0:02:56]} 10. cxd5 {[%clk 0:02:42]}  cxd5 {[%clk 0:02:57]} 11. Qb3 {[%clk 0:02:43]}  Nc6 {[%clk 0:01:38]} 12. Qxd5 {[%clk 0:02:13]}  Nfxd4 {[%clk 0:01:37]} 13. Nxd4 {[%clk 0:02:14]}  Nxd4 {[%clk 0:01:37]} 14. Rd1 {[%clk 0:02:10]}  Qh4 {[%clk 0:01:26]} 15. g3 {[%clk 0:01:25]}  Qh3 {[%clk 0:01:11]} 16. Rxd4 {[%clk 0:01:15]}  Rad8 {[%clk 0:01:11]} 17. Qg2 {[%clk 0:01:12]}  Qe6 {[%clk 0:01:08]} 18. Be3 {[%clk 0:01:11]} 1-0


[Site "https://www.chess.com"]

[Event "Titled Tuesday Blitz January 17 Early 2023"]
[White "Taboas Rodriguez, Daniel"]
[Black "Ohanyan, Emin"]
[WhiteFideId "2208466"]
[BlackFideId "13312022"]
[WhiteElo "2371"]
[BlackElo "2444"]
[Result "0-1"]
[Round "02"]
[TimeControl "180+2"]
[Date "2023.01.17"]
[WhiteClock "0:00:07"]
[BlackClock "0:00:33"]

1. d4 {[%clk 0:02:58]}  d5 {[%clk 0:03:00]} 2. Nf3 {[%clk 0:02:58]}  Nf6 {[%clk 0:02:59]} 3. c4 {[%clk 0:02:58]}  c6 {[%clk 0:02:57]} 4. cxd5 {[%clk 0:02:58]}  cxd5 {[%clk 0:02:56]} 5. Nc3 {[%clk 0:02:59]}  Nc6 {[%clk 0:02:57]} 6. Bf4 {[%clk 0:02:59]}  Bf5 {[%clk 0:02:57]} 7. e3 {[%clk 0:02:59]}  e6 {[%clk 0:02:57]} 8. Qb3 {[%clk 0:02:59]}  Bb4 {[%clk 0:02:57]} 9. Bb5 {[%clk 0:02:59]}  O-O {[%clk 0:02:57]} 10. O-O {[%clk 0:02:59]}  Bxc3 {[%clk 0:02:56]} 11. Qxc3 {[%clk 0:03:00]}  Rc8 {[%clk 0:02:56]} 12. Rfc1 {[%clk 0:02:59]}  a6 {[%clk 0:02:55]} 13. Bxc6 {[%clk 0:02:58]}  Rxc6 {[%clk 0:02:56]} 14. Qe1 {[%clk 0:02:58]}  Qb6 {[%clk 0:02:46]} 15. Rxc6 {[%clk 0:02:55]}  bxc6 {[%clk 0:02:44]} 16. b4 {[%clk 0:02:55]}  Ra8 {[%clk 0:02:38]} 17. Rc1 {[%clk 0:02:52]}  h6 {[%clk 0:02:29]} 18. Ne5 {[%clk 0:02:50]}  a5 {[%clk 0:02:28]} 19. a3 {[%clk 0:01:59]}  axb4 {[%clk 0:02:26]} 20. axb4 {[%clk 0:01:59]}  Ne4 {[%clk 0:01:54]} 21. f3 {[%clk 0:01:49]}  Nd6 {[%clk 0:01:53]} 22. Rxc6 {[%clk 0:01:44]}  Qd8 {[%clk 0:01:53]} 23. g4 {[%clk 0:01:32]}  Bh7 {[%clk 0:01:53]} 24. h4 {[%clk 0:01:21]}  f6 {[%clk 0:01:51]} 25. Nd7 {[%clk 0:01:11]}  Qxd7 {[%clk 0:01:40]} 26. Rxd6 {[%clk 0:01:10]}  Qc8 {[%clk 0:01:40]} 27. Rb6 {[%clk 0:01:02]}  Bd3 {[%clk 0:01:35]} 28. h5 {[%clk 0:00:58]}  Kh7 {[%clk 0:01:35]} 29. Qd1 {[%clk 0:00:46]}  Qc3 {[%clk 0:01:35]} 30. Rc6 {[%clk 0:00:28]}  Qxc6 {[%clk 0:01:17]} 31. Qxd3+ {[%clk 0:00:28]}  Kh8 {[%clk 0:01:12]} 32. Bg3 {[%clk 0:00:16]}  Qc1+ {[%clk 0:00:53]} 33. Kg2 {[%clk 0:00:16]}  Ra2+ {[%clk 0:00:52]} 34. Bf2 {[%clk 0:00:16]}  Qe1 {[%clk 0:00:50]} 35. Qf1 {[%clk 0:00:13]}  Qxb4 {[%clk 0:00:50]} 36. Kg3 {[%clk 0:00:11]}  Qd2 {[%clk 0:00:41]} 37. Kg2 {[%clk 0:00:11]}  Kh7 {[%clk 0:00:37]} 38. Kg3 {[%clk 0:00:10]}  Rc2 {[%clk 0:00:37]} 39. Qg1 {[%clk 0:00:10]}  Rc1 {[%clk 0:00:37]} 40. Qg2 {[%clk 0:00:10]}  Qe2 {[%clk 0:00:37]} 41. Qh2 {[%clk 0:00:10]}  e5 {[%clk 0:00:35]} 42. dxe5 {[%clk 0:00:09]}  fxe5 {[%clk 0:00:36]} 43. Qg2 {[%clk 0:00:10]}  d4 {[%clk 0:00:36]} 44. exd4 {[%clk 0:00:09]}  Rd1 {[%clk 0:00:32]} 45. dxe5 {[%clk 0:00:08]}  Qxe5+ {[%clk 0:00:33]} 46. f4 {[%clk 0:00:07]}  Rd3+ {[%clk 0:00:33]} 0-1


[Site "https://www.chess.com"]

[Event "Titled Tuesday Blitz January 17 Early 2023"]
[White "Pultinevicius, Paulius"]
[Black "Golubev, Mikhail"]
[WhiteFideId "12809390"]
[BlackFideId "14100983"]
[WhiteElo "2537"]
[BlackElo "2461"]
[Result "1-0"]
[Round "02"]
[TimeControl "180+2"]
[Date "2023.01.17"]
[WhiteClock "0:00:20"]
[BlackClock "0:01:17"]

1. d4 {[%clk 0:03:00]}  Nf6 {[%clk 0:02:59]} 2. c4 {[%clk 0:03:00]}  g6 {[%clk 0:02:58]} 3. Nc3 {[%clk 0:03:00]}  Bg7 {[%clk 0:02:59]} 4. e4 {[%clk 0:02:59]}  d6 {[%clk 0:02:59]} 5. Be2 {[%clk 0:02:57]}  O-O {[%clk 0:02:59]} 6. Be3 {[%clk 0:02:57]}  c5 {[%clk 0:02:58]} 7. d5 {[%clk 0:02:19]}  e6 {[%clk 0:02:57]} 8. Nf3 {[%clk 0:02:06]}  exd5 {[%clk 0:02:56]} 9. cxd5 {[%clk 0:02:06]}  b5 {[%clk 0:02:55]} 10. e5 {[%clk 0:01:53]}  dxe5 {[%clk 0:02:55]} 11. Bxb5 {[%clk 0:01:53]}  Re8 {[%clk 0:02:56]} 12. Bxe8 {[%clk 0:01:53]}  Qxe8 {[%clk 0:02:51]} 13. O-O {[%clk 0:01:41]}  Bg4 {[%clk 0:02:46]} 14. h3 {[%clk 0:01:38]}  Bh5 {[%clk 0:02:46]} 15. Re1 {[%clk 0:01:09]}  e4 {[%clk 0:02:34]} 16. Bg5 {[%clk 0:01:06]}  Nbd7 {[%clk 0:02:24]} 17. g4 {[%clk 0:01:01]}  Nxg4 {[%clk 0:02:13]} 18. hxg4 {[%clk 0:00:59]}  Bxg4 {[%clk 0:02:13]} 19. Rxe4 {[%clk 0:00:55]}  Ne5 {[%clk 0:02:13]} 20. Rxg4 {[%clk 0:00:39]}  Nxg4 {[%clk 0:02:10]} 21. Qa4 {[%clk 0:00:28]}  Qc8 {[%clk 0:01:59]} 22. Re1 {[%clk 0:00:27]}  Rb8 {[%clk 0:01:56]} 23. d6 {[%clk 0:00:27]}  Qf5 {[%clk 0:01:16]} 24. Re8+ {[%clk 0:00:27]}  Bf8 {[%clk 0:01:17]} 25. Rxb8 {[%clk 0:00:20]}  Qxf3 {[%clk 0:01:17]} 26. Qf4 {[%clk 0:00:20]} 1-0


[Site "https://www.chess.com"]